fUSD/lending_fUSD_20250120
["ID","MTS","AMOUNT","RATE_DAILY","PERIOD"]
[349623171,1737331231179,150.0,0.00021659,120]
[349623174,1737331317070,215.53,0.00010137,2]
[349623188,1737331707061,1276.84,0.00018615,30]
[349623191,1737331773148,-2987.77110733,0.00012229,2]
[349623192,1737331773172,-500.0,0.00012329,2]
[349623193,1737331773202,-500.0,0.00012329,2]
[349623194,1737331773225,-51.25616482,0.00012329,2]
[349623235,1737331832015,-438.76664128,0.00012329,2]
[349623236,1737331832025,-170.94,0.00012329,2]
[349623237,1737331832035,-2605.78069858,0.00014524,2]
[349623238,1737331832044,-550.0,0.00015,2]
[349623239,1737331832055,-166.41,0.0001545,2]
[349623240,1737331832064,-250.0,0.0001629,2]
[349623241,1737331832073,-1219.16,0.00016308,2]
[349623242,1737331832083,-197.79,0.00016712,2]
[349623243,1737331832094,-215.53,0.00016813,2]
[349623244,1737331832103,-388.0,0.000169,5]
[349623245,1737331832113,-600.0,0.00017,2]
[349623246,1737331832122,-879.84861851,0.00017192,2]
[349623247,1737331832132,-1330.01350877,0.00017973,2]
[349623248,1737331832141,-300.0,0.00018067,2]
[349623249,1737331832150,-500.0,0.00018068,2]
[349623250,1737331832160,-900.0,0.00018068,2]
[349623251,1737331832170,-570.52,0.0001812,2]
[349623252,1737331832180,-1127.77,0.00018173,2]
[349623253,1737331832190,-500.0,0.00018271,2]
[349623254,1737331832199,-5107.49,0.00018327,2]
[349623255,1737331832209,-5144.60795605,0.00018471,2]
[349623256,1737331832219,-200.0,0.00018482,2]
[349623257,1737331832233,-8467.72,0.00018542,2]
[349623258,1737331832242,-1219.16,0.00018572,2]
[349623259,1737331832251,-167.08,0.00018589,2]
[349623260,1737331832260,-548.92261347,0.00018606,2]
[349623261,1737331832271,-450.0,0.0001865,2]
[349623262,1737331832284,-1000.0,0.0001865,2]
[349623263,1737331832297,-915.45462686,0.00018693,2]
[349623264,1737331832309,-23900.0,0.00018694,2]
[349623265,1737331832321,-200.0,0.00018706,2]
[349623266,1737331832332,-250.0,0.00018782,2]
[349623267,1737331832343,-250.0,0.00018839,2]
[349623268,1737331832355,-17315.26535142,0.00018839,2]
[349623269,1737331832368,-1500.0,0.00018889,2]
[349623270,1737331832379,-827.73,0.00018909,2]
[349623271,1737331832391,-650.0,0.00019,2]
[349623272,1737331832403,-1041.43,0.00019035,2]
[349623273,1737331832415,-1127.77,0.00019081,2]
[349623274,1737331832428,-250.0,0.00019098,2]
[349623275,1737331832440,-2224.0,0.000191,2]
[349623276,1737331832451,-500.0,0.00019151,2]
[349623278,1737331832462,-900.0,0.00019164,2]
[349623280,1737331832475,-543.23,0.00019229,2]
[349623283,1737331832486,-180.01,0.00019312,2]
[349623285,1737331832496,-227.27,0.00019509,2]
[349623287,1737331832509,-420.0,0.00019712,2]
[349623289,1737331832520,-170.94,0.00019863,2]
[349623291,1737331832533,-665.36931188,0.000199,2]
[349623293,1737331832545,-1821.248,0.00019938,2]
[349623296,1737331832558,-500.0,0.00019939,2]
[349623298,1737331832569,-665.36931186,0.00019969,2]
[349623300,1737331832581,-1127.77,0.0001999,2]
[349623302,1737331832593,-665.36931186,0.00020038,2]
[349623305,1737331832605,-665.36931186,0.00020107,2]
[349623307,1737331832618,-500.0,0.00020159,2]
[349623309,1737331832629,-500.0,0.00020159,2]
[349623311,1737331832640,-500.0,0.00020159,2]
[349623314,1737331832653,-500.0,0.00020159,2]
[349623316,1737331832665,-525.63298201,0.00020159,2]
[349623318,1737331832676,-500.0,0.00020159,2]
[349623320,1737331832688,-500.0,0.00020159,2]
[349623321,1737331832700,-500.0,0.00020159,2]
[349623322,1737331832712,-500.0,0.00020159,2]
[349623323,1737331832723,-665.36931186,0.00020176,2]
[349623324,1737331832738,-500.0,0.00020213,2]
[349623325,1737331832749,-665.36931186,0.00020245,2]
[349623326,1737331832761,-900.0,0.0002026,2]
[349623327,1737331832773,-500.0,0.0002026,2]
[349623328,1737331832786,-665.36931186,0.00020314,2]
[349623329,1737331832797,-665.36931186,0.00020383,2]
[349623330,1737331832808,-163.3233948,0.00020384,2]
[349623331,1737331832821,-500.0,0.00020433,2]
[349623332,1737331832834,-500.0,0.00020433,2]
[349623333,1737331832845,-500.0,0.00020433,2]
[349623334,1737331832857,-500.0,0.00020433,2]
[349623335,1737331832867,-500.0,0.00020433,2]
[349623336,1737331832879,-500.0,0.00020433,2]
[349623337,1737331832893,-500.0,0.00020433,2]
[349623338,1737331832905,-500.0,0.00020433,2]
[349623339,1737331832915,-352.76,0.00020441,2]
[349623340,1737331832925,-352.76,0.00020447,2]
[349623341,1737331832935,-665.36931186,0.00020452,2]
[349623342,1737331832946,-352.76,0.00020452,2]
[349623343,1737331832957,-352.76,0.00020457,2]
[349623344,1737331832967,-352.76,0.00020463,2]
[349623345,1737331832983,-352.76,0.00020468,2]
[349623346,1737331832997,-150.0,0.00020468,2]
[349623347,1737331833008,-352.76,0.00020473,2]
[349623348,1737331833021,-352.76,0.00020479,2]
[349623349,1737331833033,-500.0,0.00020484,2]
[349623350,1737331833043,-490.23448184,0.00020484,2]
[349623351,1737331833056,-260.86036384,0.00020484,2]
[349623352,1737331833068,-205.01247201,0.00020484,2]
[349623353,1737331833080,-1407.19,0.00020484,2]
[349623354,1737331833092,-715.27,0.00020484,2]
[349623355,1737331833104,-500.0,0.00020484,2]
[349623356,1737331833116,-3428.58,0.00020484,2]
[349623357,1737331833129,-500.0,0.00020484,2]
[349623358,1737331833141,-577.275526,0.00020484,2]
[349623359,1737331833154,-500.0,0.00020484,2]
[349623360,1737331833166,-162.597979,0.00020484,2]
[349623361,1737331833180,-716.0,0.00020484,2]
[349623362,1737331833195,-159.550044,0.00020484,2]
[349623363,1737331833208,-1480.72,0.00020484,2]
[349623364,1737331833221,-1596.848053,0.00020484,2]
[349623365,1737331833236,-500.0,0.00020484,2]
[349623366,1737331833248,-500.0,0.00020484,2]
[349623367,1737331833260,-500.0,0.00020484,2]
[349623368,1737331833271,-500.0,0.00020484,2]
[349623369,1737331833284,-3819.17,0.00020484,2]
[349623370,1737331833296,-500.0,0.00020484,2]
[349623371,1737331833307,-500.0,0.00020484,2]
[349623372,1737331833318,-501.19,0.00020484,2]
[349623373,1737331833330,-500.0,0.00020484,2]
[349623374,1737331833341,-500.0,0.00020484,2]
[349623375,1737331833352,-1758.89,0.00020484,2]
[349623376,1737331833363,-500.0,0.00020484,2]
[349623377,1737331833375,-500.0,0.00020484,2]
[349623378,1737331833386,-553.95,0.00020484,2]
[349623379,1737331833398,-500.0,0.00020484,2]
[349623380,1737331833410,-500.0,0.00020484,2]
[349623381,1737331833421,-855.39,0.00020484,2]
[349623382,1737331833432,-880.7,0.00020484,2]
[349623383,1737331833443,-500.0,0.00020484,2]
[349623384,1737331833454,-500.0,0.00020484,2]
[349623385,1737331833465,-352.76,0.00020484,2]
[349623386,1737331833479,-577.18,0.00020485,2]
[349623387,1737331833491,-500.0,0.00020485,2]
[349623388,1737331833503,-401.37075738,0.00020485,2]
[349623389,1737331833514,-500.0,0.00020485,2]
[349623390,1737331833526,-500.0,0.00020485,2]
[349623391,1737331833538,-500.0,0.00020485,2]
[349623392,1737331833549,-500.0,0.00020485,2]
[349623393,1737331833561,-500.0,0.00020485,2]
[349623394,1737331833572,-500.0,0.00020485,2]
[349623395,1737331833583,-500.0,0.00020485,2]
[349623396,1737331833595,-500.0,0.00020485,2]
[349623397,1737331833606,-500.0,0.00020485,2]
[349623398,1737331833619,-500.0,0.00020485,2]
[349623399,1737331833630,-500.0,0.00020485,2]
[349623400,1737331833642,-500.0,0.00020485,2]
[349623401,1737331833653,-500.0,0.00020485,2]
[349623402,1737331833664,-500.0,0.00020485,2]
[349623403,1737331833675,-500.0,0.00020485,2]
[349623404,1737331833687,-500.42246697,0.00020485,2]
[349623405,1737331833698,-514.61549541,0.00020485,2]
[349623406,1737331833710,-500.0,0.00020485,2]
[349623407,1737331833721,-500.0,0.00020485,2]
[349623408,1737331833736,-500.0,0.00020485,2]
[349623409,1737331833747,-385.0,0.00020485,2]
[349623410,1737331833758,-500.0,0.00020485,2]
[349623411,1737331833770,-500.0,0.00020485,2]
[349623412,1737331833780,-500.0,0.00020485,2]
[349623413,1737331833792,-500.0,0.00020485,2]
[349623414,1737331833803,-195.92,0.00020485,2]
[349623415,1737331833815,-500.0,0.00020485,2]
[349623416,1737331833826,-213.8,0.00020485,2]
[349623417,1737331833838,-500.0,0.00020485,2]
[349623418,1737331833849,-500.0,0.00020485,2]
[349623419,1737331833860,-500.0,0.00020485,2]
[349623420,1737331833873,-500.0,0.00020485,2]
[349623421,1737331833885,-500.0,0.00020485,2]
[349623422,1737331833896,-500.0,0.00020485,2]
[349623423,1737331833908,-500.0,0.00020485,2]
[349623424,1737331833920,-500.0,0.00020485,2]
[349623425,1737331833932,-500.0,0.00020485,2]
[349623426,1737331833943,-500.0,0.00020485,2]
[349623427,1737331833956,-208.8,0.00020485,2]
[349623428,1737331833969,-500.0,0.00020485,2]
[349623429,1737331833986,-500.0,0.00020485,2]
[349623430,1737331834000,-500.0,0.00020485,2]
[349623431,1737331834014,-500.0,0.00020485,2]
[349623432,1737331834026,-500.0,0.00020485,2]
[349623433,1737331834036,-500.0,0.00020485,2]
[349623434,1737331834047,-500.0,0.00020485,2]
[349623435,1737331834058,-500.0,0.00020485,2]
[349623436,1737331834069,-500.0,0.00020485,2]
[349623437,1737331834080,-398.48,0.00020485,2]
[349623438,1737331834091,-305.11827546,0.00020485,2]
[349623439,1737331834102,-500.0,0.00020485,2]
[349623440,1737331834455,-500.0,0.00020485,2]
[349623441,1737331834473,-500.0,0.00020485,2]
[349623442,1737331834487,-500.0,0.00020485,2]
[349623443,1737331834498,-500.0,0.00020485,2]
[349623444,1737331834507,-500.0,0.00020485,2]
[349623445,1737331834517,-150.0,0.00020485,2]
[349623446,1737331834528,-500.0,0.00020485,2]
[349623447,1737331834538,-500.0,0.00020485,2]
[349623448,1737331834548,-500.0,0.00020485,2]
[349623449,1737331834558,-500.0,0.00020485,2]
[349623450,1737331834568,-566.64,0.00020485,2]
[349623451,1737331834578,-500.0,0.00020485,2]
[349623452,1737331834588,-500.0,0.00020485,2]
[349623453,1737331834598,-500.0,0.00020485,2]
[349623454,1737331834608,-500.0,0.00020485,2]
[349623455,1737331834618,-500.0,0.00020485,2]
[349623456,1737331834628,-500.0,0.00020485,2]
[349623457,1737331834637,-500.0,0.00020485,2]
[349623458,1737331834647,-460.31,0.00020485,2]
[349623459,1737331834656,-500.0,0.00020485,2]
[349623460,1737331834666,-500.0,0.00020485,2]
[349623461,1737331834675,-500.0,0.00020485,2]
[349623462,1737331834685,-500.0,0.00020485,2]
[349623463,1737331834695,-504.09335981,0.00020485,2]
[349623464,1737331834704,-500.0,0.00020485,2]
[349623465,1737331834714,-500.0,0.00020485,2]
[349623466,1737331834724,-500.0,0.00020485,2]
[349623467,1737331834740,-500.0,0.00020485,2]
[349623468,1737331834750,-500.0,0.00020485,2]
[349623469,1737331834759,-500.0,0.00020485,2]
[349623470,1737331834769,-500.0,0.00020485,2]
[349623471,1737331834778,-500.0,0.00020485,2]
[349623472,1737331834788,-631.68379142,0.00020485,2]
[349623473,1737331834798,-500.0,0.00020485,2]
[349623474,1737331834807,-500.0,0.00020485,2]
[349623475,1737331834817,-500.0,0.00020485,2]
[349623476,1737331834826,-500.0,0.00020485,2]
[349623477,1737331834835,-500.0,0.00020485,2]
[349623478,1737331834845,-500.0,0.00020485,2]
[349623479,1737331834856,-500.0,0.00020485,2]
[349623480,1737331834866,-500.0,0.00020485,2]
[349623481,1737331834876,-500.0,0.00020485,2]
[349623482,1737331834885,-500.0,0.00020485,2]
[349623483,1737331834894,-500.0,0.00020485,2]
[349623484,1737331834903,-500.0,0.00020485,2]
[349623485,1737331834913,-500.0,0.00020485,2]
[349623486,1737331834922,-500.0,0.00020485,2]
[349623487,1737331834932,-500.0,0.00020485,2]
[349623488,1737331834942,-500.0,0.00020485,2]
[349623489,1737331834952,-431.62970497,0.00020485,2]
[349623490,1737331834962,-500.0,0.00020485,2]
[349623491,1737331834971,-172.01186153,0.00020485,2]
[349623492,1737331834985,-348.63908249,0.00020485,2]
[349623493,1737331834996,-500.0,0.00020485,2]
[349623494,1737331835007,-500.0,0.00020485,2]
[349623495,1737331835018,-568.58,0.00020485,2]
[349623496,1737331835028,-500.0,0.00020485,2]
[349623497,1737331835037,-500.0,0.00020485,2]
[349623498,1737331835047,-500.0,0.00020485,2]
[349623499,1737331835058,-500.0,0.00020485,2]
[349623500,1737331835068,-500.0,0.00020485,2]
[349623501,1737331835077,-2037.09,0.00020485,2]
[349623502,1737331835088,-500.0,0.00020485,2]
[349623503,1737331835097,-500.0,0.00020485,2]
[349623504,1737331835106,-500.0,0.00020485,2]
[349623505,1737331835116,-504.37,0.00020485,2]
[349623506,1737331835125,-500.0,0.00020485,2]
[349623507,1737331835135,-500.0,0.00020485,2]
[349623508,1737331835144,-500.0,0.00020485,2]
[349623509,1737331835155,-500.0,0.00020485,2]
[349623510,1737331835166,-500.0,0.00020485,2]
[349623511,1737331835175,-1003.46,0.00020485,2]
[349623512,1737331835186,-500.0,0.00020485,2]
[349623513,1737331835195,-1650.22,0.00020485,2]
[349623514,1737331835205,-500.0,0.00020485,2]
[349623515,1737331835216,-500.0,0.00020485,2]
[349623516,1737331835230,-501.40623838,0.00020485,2]
[349623517,1737331835239,-500.0,0.00020485,2]
[349623518,1737331835249,-500.0,0.00020485,2]
[349623519,1737331835259,-873.76,0.00020485,2]
[349623520,1737331835268,-500.0,0.00020485,2]
[349623521,1737331835278,-500.0,0.00020485,2]
[349623522,1737331835287,-500.0,0.00020485,2]
[349623523,1737331835297,-500.0,0.00020485,2]
[349623524,1737331835306,-500.0,0.00020485,2]
[349623525,1737331835315,-500.0,0.00020485,2]
[349623526,1737331835325,-500.0,0.00020485,2]
[349623527,1737331835336,-500.0,0.00020485,2]
[349623528,1737331835346,-500.0,0.00020485,2]
[349623529,1737331835357,-500.0,0.00020485,2]
[349623530,1737331835367,-500.0,0.00020485,2]
[349623531,1737331835377,-500.0,0.00020485,2]
[349623532,1737331835386,-500.0,0.00020485,2]
[349623533,1737331835395,-500.0,0.00020485,2]
[349623534,1737331835405,-500.0,0.00020485,2]
[349623535,1737331835414,-500.0,0.00020485,2]
[349623536,1737331835424,-500.0,0.00020485,2]
[349623537,1737331835434,-500.0,0.00020485,2]
[349623538,1737331835443,-500.0,0.00020485,2]
[349623539,1737331835452,-500.0,0.00020485,2]
[349623540,1737331835462,-500.0,0.00020485,2]
[349623541,1737331835472,-500.0,0.00020485,2]
[349623542,1737331835486,-500.0,0.00020485,2]
[349623543,1737331835495,-500.0,0.00020485,2]
[349623544,1737331835505,-500.0,0.00020486,2]
[349623545,1737331835515,-500.0,0.00020486,2]
[349623546,1737331835525,-1308.01,0.00020486,2]
[349623547,1737331835534,-500.0,0.00020486,2]
[349623548,1737331835544,-595.86,0.00020486,2]
[349623549,1737331835554,-3190.58,0.00020486,2]
[349623550,1737331835564,-515.69,0.00020486,2]
[349623551,1737331835574,-646.9,0.00020486,2]
[349623552,1737331835584,-1007.69,0.00020486,2]
[349623553,1737331835593,-1003.12,0.00020486,2]
[349623554,1737331835603,-500.0,0.00020486,2]
[349623555,1737331835613,-500.0,0.00020486,2]
[349623556,1737331835623,-865.71,0.00020486,2]
[349623557,1737331835632,-500.0,0.00020486,2]
[349623558,1737331835641,-500.0,0.00020486,2]
[349623559,1737331835650,-1789.74,0.00020486,2]
[349623560,1737331835660,-989.04,0.00020486,2]
[349623561,1737331835669,-542.42,0.00020486,2]
[349623562,1737331835679,-500.0,0.00020486,2]
[349623563,1737331835689,-500.0,0.00020486,2]
[349623564,1737331835699,-505.45,0.00020486,2]
[349623565,1737331835708,-2667.26,0.00020486,2]
[349623566,1737331835718,-500.0,0.00020486,2]
[349623567,1737331835731,-797.44,0.00020486,2]
[349623568,1737331835741,-981.74,0.00020486,2]
[349623569,1737331835751,-500.0,0.00020486,2]
[349623570,1737331835762,-535.63,0.00020486,2]
[349623571,1737331835771,-500.0,0.00020486,2]
[349623572,1737331835781,-500.0,0.00020487,2]
[349623573,1737331835790,-352.76,0.0002049,2]
[349623574,1737331835800,-352.76,0.00020495,2]
[349623575,1737331835811,-352.76,0.000205,2]
[349623576,1737331835820,-352.76,0.00020506,2]
[349623577,1737331835830,-352.76,0.00020511,2]
[349623578,1737331835839,-352.76,0.00020516,2]
[349623579,1737331835849,-665.36931186,0.00020521,2]
[349623580,1737331835858,-352.76,0.00020522,2]
[349623581,1737331835868,-352.76,0.00020527,2]
[349623582,1737331835877,-352.76,0.00020533,2]
[349623583,1737331835887,-352.76,0.00020538,2]
[349623584,1737331835896,-352.76,0.00020543,2]
[349623585,1737331835906,-665.36931186,0.0002059,2]
[349623586,1737331835915,-200.0,0.00020638,2]
[349623587,1737331835926,-572.34,0.00020649,2]
[349623588,1737331835935,-665.36931186,0.00020659,2]
[349623589,1737331835946,-433.31238957,0.00020707,2]
[349623590,1737331835956,-636.15871155,0.00020707,2]
[349623591,1737331835966,-500.0,0.00020707,2]
[349623592,1737331835976,-500.0,0.00020707,2]
[349623593,1737331835991,-500.0,0.00020707,2]
[349623594,1737331836000,-500.0,0.00020707,2]
[349623595,1737331836015,-154.3818884,0.00020707,2]
[349623596,1737331836025,-665.36931186,0.00020728,2]
[349623597,1737331836035,-572.34,0.00020749,2]
[349623598,1737331836044,-500.0,0.00020758,2]
[349623599,1737331836054,-1407.19,0.00020758,2]
[349623600,1737331836063,-715.27,0.00020758,2]
[349623601,1737331836073,-500.0,0.00020758,2]
[349623602,1737331836083,-3428.58,0.00020758,2]
[349623603,1737331836095,-500.0,0.00020758,2]
[349623604,1737331836105,-577.275526,0.00020758,2]
[349623605,1737331836114,-500.0,0.00020758,2]
[349623606,1737331836124,-716.0,0.00020758,2]
[349623607,1737331836134,-1480.72,0.00020758,2]
[349623608,1737331836143,-1596.848053,0.00020758,2]
[349623609,1737331836153,-515.64,0.00020758,2]
[349623610,1737331836162,-500.0,0.00020758,2]
[349623611,1737331836172,-500.0,0.00020758,2]
[349623612,1737331836182,-3819.17,0.00020758,2]
[349623613,1737331836192,-500.0,0.00020758,2]
[349623614,1737331836201,-500.0,0.00020758,2]
[349623615,1737331836211,-501.19,0.00020758,2]
[349623616,1737331836221,-500.0,0.00020758,2]
[349623617,1737331836237,-500.0,0.00020758,2]
[349623618,1737331836247,-1758.89,0.00020758,2]
[349623619,1737331836262,-157.69401786,0.00020758,2]
[349623620,1737331836272,-500.0,0.00020758,2]
[349623621,1737331836282,-553.95,0.00020758,2]
[349623622,1737331836292,-500.0,0.00020758,2]
[349623623,1737331836302,-500.0,0.00020758,2]
[349623624,1737331836311,-855.39,0.00020758,2]
[349623625,1737331836321,-880.7,0.00020758,2]
[349623626,1737331836330,-500.0,0.00020758,2]
[349623627,1737331836340,-500.0,0.00020758,2]
[349623628,1737331836349,-500.0,0.00020759,2]
[349623629,1737331836359,-500.0,0.00020759,2]
[349623630,1737331836369,-500.0,0.00020759,2]
[349623631,1737331836379,-500.0,0.00020759,2]
[349623632,1737331836389,-536.14033691,0.00020759,2]
[349623633,1737331836398,-500.0,0.00020759,2]
[349623634,1737331836407,-500.0,0.00020759,2]
[349623635,1737331836417,-500.0,0.00020759,2]
[349623636,1737331836426,-500.0,0.00020759,2]
[349623637,1737331836435,-500.0,0.00020759,2]
[349623638,1737331836445,-264.9108162,0.00020759,2]
[349623639,1737331836454,-500.0,0.00020759,2]
[349623640,1737331836464,-500.0,0.00020759,2]
[349623641,1737331836474,-500.0,0.00020759,2]
[349623642,1737331836490,-324.56,0.00020759,2]
[349623643,1737331836500,-229.32,0.00020759,2]
[349623644,1737331836509,-333.16,0.00020759,2]
[349623645,1737331836519,-500.0,0.00020759,2]
[349623646,1737331836529,-500.0,0.00020759,2]
[349623647,1737331836539,-500.0,0.00020759,2]
[349623648,1737331836550,-500.0,0.00020759,2]
[349623649,1737331836560,-500.0,0.00020759,2]
[349623650,1737331836571,-264.47787509,0.00020759,2]
[349623651,1737331836581,-500.0,0.00020759,2]
[349623652,1737331836593,-500.0,0.00020759,2]
[349623653,1737331836603,-500.0,0.00020759,2]
[349623654,1737331836613,-500.0,0.00020759,2]
[349623655,1737331836623,-500.0,0.00020759,2]
[349623656,1737331836633,-190.04,0.00020759,2]
[349623657,1737331836644,-500.0,0.00020759,2]
[349623658,1737331836654,-500.0,0.00020759,2]
[349623659,1737331836664,-500.0,0.00020759,2]
[349623660,1737331836674,-500.0,0.00020759,2]
[349623661,1737331836685,-500.0,0.00020759,2]
[349623662,1737331836696,-500.0,0.00020759,2]
[349623663,1737331836706,-500.0,0.00020759,2]
[349623664,1737331836717,-500.0,0.00020759,2]
[349623665,1737331836727,-500.0,0.00020759,2]
[349623666,1737331836746,-500.0,0.00020759,2]
[349623667,1737331836756,-500.0,0.00020759,2]
[349623668,1737331836766,-253.2,0.00020759,2]
[349623669,1737331836775,-500.0,0.00020759,2]
[349623670,1737331836786,-500.0,0.00020759,2]
[349623671,1737331836796,-500.0,0.00020759,2]
[349623672,1737331836805,-500.0,0.00020759,2]
[349623673,1737331836815,-566.64,0.00020759,2]
[349623674,1737331836826,-460.14664972,0.00020759,2]
[349623675,1737331836837,-43.85652361,0.00020759,2]
[349623676,1737331836856,-456.14347639,0.00020759,2]
[349623677,1737331836866,-500.0,0.00020759,2]
[349623678,1737331836876,-500.0,0.00020759,2]
[349623679,1737331836900,-500.0,0.00020759,2]
[349623680,1737331836914,-500.0,0.00020759,2]
[349623681,1737331836925,-500.0,0.00020759,2]
[349623682,1737331836936,-500.0,0.00020759,2]
[349623683,1737331836948,-500.0,0.00020759,2]
[349623684,1737331836958,-500.0,0.00020759,2]
[349623685,1737331836969,-360.13,0.00020759,2]
[349623686,1737331836986,-500.0,0.00020759,2]
[349623687,1737331837000,-500.0,0.00020759,2]
[349623688,1737331837017,-500.0,0.00020759,2]
[349623689,1737331837031,-500.0,0.00020759,2]
[349623690,1737331837043,-220.08,0.00020759,2]
[349623691,1737331837060,-500.0,0.00020759,2]
[349623692,1737331837075,-500.0,0.00020759,2]
[349623693,1737331837087,-500.0,0.00020759,2]
[349623694,1737331837100,-500.0,0.00020759,2]
[349623695,1737331837113,-500.0,0.00020759,2]
[349623696,1737331837127,-568.58,0.00020759,2]
[349623697,1737331837141,-500.0,0.00020759,2]
[349623698,1737331837155,-500.0,0.00020759,2]
[349623699,1737331837168,-390.01320827,0.00020759,2]
[349623700,1737331837179,-500.0,0.00020759,2]
[349623701,1737331837191,-2037.09,0.00020759,2]
[349623702,1737331837205,-500.0,0.00020759,2]
[349623703,1737331837217,-550.95,0.00020759,2]
[349623704,1737331837236,-500.0,0.00020759,2]
[349623705,1737331837252,-500.0,0.00020759,2]
[349623706,1737331837266,-538.34384551,0.00020759,2]
[349623707,1737331837282,-500.0,0.00020759,2]
[349623708,1737331837295,-1003.46,0.00020759,2]
[349623709,1737331837309,-408.89084401,0.00020759,2]
[349623710,1737331837322,-1650.22,0.00020759,2]
[349623711,1737331837335,-479.55524365,0.00020759,2]
[349623712,1737331837348,-500.0,0.00020759,2]
[349623713,1737331837360,-500.0,0.00020759,2]
[349623714,1737331837373,-873.76,0.00020759,2]
[349623715,1737331837385,-505.70896096,0.00020759,2]
[349623716,1737331837398,-500.0,0.00020759,2]
[349623717,1737331837410,-500.0,0.00020759,2]
[349623718,1737331837423,-500.0,0.00020759,2]
[349623719,1737331837437,-500.0,0.00020759,2]
[349623720,1737331837457,-500.0,0.00020759,2]
[349623721,1737331837471,-411.17003967,0.00020759,2]
[349623722,1737331837500,-88.82996033,0.00020759,2]
[349623723,1737331837511,-500.0,0.00020759,2]
[349623724,1737331837523,-500.0,0.00020759,2]
[349623725,1737331837535,-500.0,0.00020759,2]
[349623726,1737331837545,-500.0,0.00020759,2]
[349623727,1737331837556,-500.0,0.00020759,2]
[349623728,1737331837566,-500.0,0.00020759,2]
[349623729,1737331837577,-500.0,0.00020759,2]
[349623730,1737331837591,-500.0,0.00020759,2]
[349623731,1737331837602,-132.02732693,0.0002076,2]
[349623732,1737331837656,-173.90234239,0.0002076,2]
[349623733,1737331837667,-500.0,0.0002076,2]
[349623735,1737331837677,-1308.01,0.0002076,2]
[349623736,1737331837688,-500.0,0.0002076,2]
[349623737,1737331837698,-595.86,0.0002076,2]
[349623738,1737331837709,-3190.58,0.0002076,2]
[349623739,1737331837719,-515.69,0.0002076,2]
[349623741,1737331837735,-646.9,0.0002076,2]
[349623742,1737331837745,-1007.69,0.0002076,2]
[349623743,1737331837756,-1003.12,0.0002076,2]
[349623744,1737331837766,-500.0,0.0002076,2]
[349623745,1737331837776,-500.0,0.0002076,2]
[349623747,1737331837787,-865.71,0.0002076,2]
[349623748,1737331837797,-500.0,0.0002076,2]
[349623749,1737331837807,-500.0,0.0002076,2]
[349623750,1737331837817,-1789.74,0.0002076,2]
[349623751,1737331837827,-989.04,0.0002076,2]
[349623752,1737331837838,-542.42,0.0002076,2]
[349623753,1737331837848,-500.0,0.0002076,2]
[349623754,1737331837858,-500.0,0.0002076,2]